bitfinex/quotes_SOLUSD_20250722
["timestamp","ask_amount","ask_price","bid_price","bid_amount"]
[1753177339566,0.1,198.11,198.1,5.71795557]
[1753177339784,0.1,198.11,198.1,13.09011496]
[1753177339991,0.1,198.11,198.1,15.66894674]
[1753177340283,1e-08,198.11,198.1,8.29678735]
[1753177340480,1e-08,198.11,198.1,16.17374229]
[1753177340662,1e-08,198.13,198.12,26.0]
[1753177340861,0.72,198.26,198.12,26.50474459]
[1753177341085,2.62827277,198.28,198.21,7.37215939]
[1753177341283,2.62827277,198.28,198.22,7.37215939]
[1753177341483,6.5444,198.3,198.23,7.37215939]
[1753177341680,0.72,198.32,198.23,0.67]
[1753177341878,7.37215939,198.31,198.25,7.37215939]
[1753177342074,8.09215939,198.32,198.25,7.37215939]
[1753177342259,11.27030932,198.35,198.28,7.37215939]
[1753177342463,7.37215939,198.34,198.28,7.37215939]
[1753177342663,7.37215939,198.34,198.25,0.67]
[1753177342887,7.37215939,198.3,198.22,5.0448996]
[1753177343082,0.72,198.29,198.22,12.41705899]
[1753177343282,0.72,198.32,198.25,7.37215939]
[1753177343587,0.72,198.32,198.22,5.7148996]
[1753177343588,0.72,198.32,198.26,7.37215939]
[1753177343971,8.09215939,198.32,198.22,5.7148996]
[1753177344177,0.72,198.31,198.21,26.0]
[1753177344374,5.04286434,198.3,198.19,5.71561658]
[1753177344573,0.72,198.29,198.23,7.37215939]
[1753177344791,0.72,198.29,198.24,7.37215939]
[1753177344988,6.2285,198.35,198.19,17.65977471]
[1753177345192,0.72,198.34,198.27,7.37215939]
[1753177345504,2.62703028,198.38,198.29,7.37215939]
[1753177345665,7.37215939,198.32,198.22,26.67]
[1753177345871,0.72,198.31,198.25,7.37215939]
[1753177346266,0.72,198.31,198.26,7.37215939]
[1753177346488,5.76261248,198.31,198.26,7.37215939]
[1753177346697,0.72,198.33,198.28,7.37215939]
[1753177347094,7.37215939,198.33,198.27,7.37215939]
[1753177347288,17.64379694,198.37,198.28,3.10284644]
[1753177347289,8.09215939,198.32,198.28,3.10284644]
[1753177347484,7.37215939,198.3,198.22,0.67]
[1753177347675,7.37215939,198.3,198.23,3.10480932]
[1753177347996,8.09215939,198.29,198.24,3.10480932]
[1753177348292,8.09215939,198.29,198.16,12.61597523]
[1753177348293,12.41604116,198.26,198.25,3.10480932]
[1753177348489,5.76388177,198.26,198.18,12.4180764]
[1753177348687,5.76392145,198.26,198.21,7.37215939]
[1753177348871,5.76392145,198.26,198.22,3.10531714]
[1753177349072,7.37215939,198.28,198.22,3.10531714]
[1753177349073,7.37215939,198.28,198.23,3.10531714]
[1753177349297,0.72,198.28,198.24,3.10531714]
[1753177349476,0.72,198.28,198.25,3.10531714]
[1753177349679,0.72,198.28,198.26,3.10531714]
[1753177349984,0.72,198.28,198.2,0.67]
[1753177349985,8.09215939,198.31,198.27,3.10099357]
[1753177350286,12.41502258,198.31,198.28,3.10099357]
[1753177350488,12.41502258,198.31,198.29,3.09981923]
[1753177350489,0.72,198.31,198.29,3.09981923]
[1753177350672,8.09215939,198.3,198.24,7.37215939]
[1753177350868,0.72,198.29,198.25,3.10100262]
[1753177351072,0.72,198.29,198.26,3.10100262]
[1753177351294,0.72,198.29,198.27,3.10100262]
[1753177351504,7.37215939,198.3,198.24,7.37215939]
[1753177351706,0.72,198.33,198.25,3.10277897]
[1753177351913,7.37215939,198.31,198.26,3.10277897]
[1753177352078,5.04235578,198.32,198.23,7.37215939]
[1753177352281,8.09215939,198.3,198.24,3.10260523]
[1753177352500,8.09215939,198.3,198.25,3.10260523]
[1753177352797,5.04235578,198.32,198.26,3.10260523]
[1753177353095,5.04235578,198.32,198.24,7.37215939]
[1753177353096,8.09215939,198.3,198.24,7.37215939]
[1753177353304,8.09215939,198.3,198.25,3.10038115]
[1753177353618,5.04235578,198.32,198.26,3.10038115]
[1753177353619,0.72,198.29,198.26,3.10038115]
[1753177353803,0.72,198.29,198.18,16.78468397]
[1753177353977,13.13545746,198.29,198.2,0.67]
[1753177354172,5.76329807,198.29,198.24,7.37215939]
[1753177354394,5.76329807,198.29,198.25,3.10035638]
[1753177354692,5.76329807,198.29,198.23,7.37215939]
[1753177354693,0.72,198.28,198.23,7.37215939]
[1753177354919,13.13504413,198.3,198.24,3.09842958]
[1753177355112,5.76288474,198.3,198.25,3.09842958]
[1753177355416,5.76288474,198.3,198.26,3.09842958]
[1753177355709,0.06,198.33,198.26,3.09842958]
[1753177355710,12.41451517,198.32,198.27,3.09804871]
[1753177356009,0.72,198.31,198.28,3.09804871]
[1753177356175,12.41451517,198.32,198.25,7.37215939]
[1753177356176,8.09215939,198.32,198.29,3.09708972]
[1753177356376,13.13460932,198.32,198.26,7.37215939]
[1753177356577,0.06,198.33,198.27,10.46915559]
[1753177356803,0.06,198.33,198.28,3.0969962]
[1753177356999,0.06,198.33,198.29,3.0969962]
[1753177357220,7.43215939,198.33,198.26,7.37215939]
[1753177357499,0.06,198.33,198.28,7.37215939]
[1753177357691,0.06,198.33,198.29,8.13911883]
[1753177357904,0.06,198.33,198.29,5.71311151]
[1753177358196,0.06,198.33,198.29,13.0852709]
[1753177358390,0.06,198.33,198.29,8.04215939]
[1753177358700,0.06,198.33,198.23,6.0909]
[1753177358701,0.72,198.32,198.23,8.04215939]
[1753177358908,7.37215939,198.3,198.24,3.09239379]
[1753177359200,7.43215939,198.33,198.27,7.37215939]
[1753177359412,7.43215939,198.33,198.28,3.09239379]
[1753177359597,8.03215939,198.32,198.28,3.09239379]
[1753177359791,0.66,198.31,198.26,7.37215939]
[1753177360087,0.06,198.33,198.29,7.37215939]
[1753177360280,0.06,198.33,198.3,0.72]
[1753177360481,8.09215939,198.33,198.26,7.37215939]
[1753177360712,8.03215939,198.32,198.27,3.09459477]
[1753177360883,8.03215939,198.32,198.28,3.09459477]
[1753177361078,0.66,198.32,198.26,7.37215939]
[1753177361279,0.06,198.33,198.28,7.37215939]
[1753177361475,0.06,198.33,198.29,3.09582771]
[1753177361696,0.06,198.33,198.29,7.37215939]
[1753177361914,0.06,198.33,198.3,3.09547938]
[1753177362084,0.06,198.33,198.29,8.09215939]
[1753177362287,0.06,198.33,198.3,3.09746178]
[1753177362474,0.06,198.33,198.3,0.72]
[1753177362681,0.06,198.33,198.29,0.72]
[1753177362910,0.06,198.33,198.3,3.09721633]
[1753177363112,7.37215939,198.31,198.24,7.37215939]
[1753177363411,0.06,198.33,198.25,3.0997655]
[1753177363412,7.37215939,198.26,198.25,3.0997655]
[1753177363580,0.66,198.26,198.25,3.0997655]
[1753177363777,13.07604116,198.26,198.25,3.0997655]
[1753177364011,0.66,198.26,198.25,3.0997655]
[1753177364179,7.37215939,198.27,198.25,3.0997655]
[1753177364378,7.37215939,198.27,198.26,3.0997655]
[1753177364605,5.70261005,198.31,198.26,3.0997655]
[1753177364779,5.70261005,198.31,198.27,3.09929303]
[1753177365102,8.09215939,198.33,198.28,3.09929303]
[1753177365404,8.09215939,198.33,198.27,8.09215939]
[1753177365590,8.09215939,198.33,198.28,3.09940268]
[1753177365792,0.06,198.33,198.27,12.41556377]
[1753177365980,7.37215939,198.32,198.25,7.37215939]
[1753177366182,7.37215939,198.32,198.26,3.10105157]
[1753177366387,7.37215939,198.32,198.27,3.10081874]
[1753177366598,5.1021395,198.33,198.28,7.37215939]
[1753177366809,7.37215939,198.32,198.29,3.09938052]
[1753177367110,7.37215939,198.3,198.24,7.37215939]
[1753177367290,8.03215939,198.31,198.25,3.10203338]
[1753177367488,0.66,198.31,198.26,3.10203338]
[1753177367697,8.03215939,198.31,198.27,3.10203338]
[1753177368013,7.37215939,198.28,198.2,7.37215939]
[1753177368185,7.37215939,198.25,198.21,3.10314346]
[1753177368385,7.37215939,198.25,198.22,3.10314346]
[1753177368583,8.03215939,198.25,198.23,3.10314346]
[1753177368787,7.37215939,198.26,198.24,3.10314346]
[1753177368995,17.6500252,198.3,198.25,3.10314346]
[1753177369203,7.37215939,198.26,198.15,2.03816818]
[1753177369390,7.37215939,198.18,198.16,3.10799051]
[1753177369592,7.37215939,198.18,198.17,3.10799051]
[1753177369808,12.41807724,198.18,198.17,3.10799051]
[1753177370006,12.41807724,198.18,198.17,3.11005412]
[1753177370286,13.07807724,198.18,198.17,2.39005412]
[1753177371093,13.07807724,198.18,198.1,7.37215939]
[1753177371292,7.37215939,198.17,198.11,0.72]
[1753177371487,7.37215939,198.18,198.12,7.37215939]
[1753177371709,7.37215939,198.17,198.11,0.72]
[1753177372012,5.70568951,198.19,198.11,0.72]
[1753177372013,12.41817585,198.18,198.11,13.13979939]
[1753177372184,7.37215939,198.17,198.11,0.72]
[1753177372391,7.37215939,198.17,198.05,0.03]
[1753177372392,0.66,198.17,198.07,8.09215939]
[1753177372600,7.37215939,198.13,198.07,8.09215939]
[1753177373219,7.37215939,198.12,198.05,0.03]
[1753177373422,7.37215939,198.08,198.05,0.03]
[1753177373627,7.37215939,198.06,198.05,0.03]
[1753177373916,12.42113444,198.06,198.05,0.03]
[1753177374089,13.08113444,198.06,198.05,0.03]
[1753177376404,5.70897505,198.06,198.05,0.03]
[1753177376619,13.08113444,198.06,198.05,0.03]
[1753177377599,12.42113444,198.06,198.05,0.03]
[1753177377794,13.08113444,198.06,198.05,0.03]
[1753177378010,25.70357208,198.06,197.92,8.6382]
[1753177378320,7.37215939,197.98,197.93,5.05204962]
[1753177378487,7.37215939,197.99,197.94,0.75]
[1753177378688,7.37215939,198.0,197.95,0.72]
[1753177378890,5.70897505,198.06,197.96,7.37215939]
[1753177379088,5.70897505,198.06,197.97,8.09215939]
[1753177379307,7.37215939,198.04,197.98,0.72]
[1753177379504,24.15684336,198.12,197.99,5.05076013]
[1753177379505,7.37215939,198.05,197.99,5.05076013]
[1753177379816,0.66,198.12,198.03,7.37215939]
[1753177380017,7.37215939,198.11,198.04,8.09215939]
[1753177380222,7.37215939,198.11,198.05,7.37215939]
[1753177380397,7.37215939,198.11,198.04,0.72]
[1753177380601,0.66,198.12,198.04,8.09215939]
[1753177380805,18.32427777,198.14,198.0,0.5050505]
[1753177381119,7.37215939,198.06,197.98,0.72]
[1753177381320,7.37215939,198.08,198.01,8.09215939]
[1753177381510,7.37215939,198.12,198.05,7.37215939]
[1753177381703,7.37215939,198.17,198.1,7.37215939]
[1753177382017,7.37215939,198.19,198.12,7.37215939]
[1753177382228,7.37215939,198.19,198.13,0.72]
[1753177382432,7.37215939,198.18,198.13,0.72]
[1753177382611,7.37215939,198.17,198.12,0.72]
[1753177382805,8.03215939,198.17,198.1,7.37215939]
[1753177383121,8.03215939,198.17,198.11,7.37215939]
[1753177383300,7.37215939,198.17,198.11,7.37215939]
[1753177383613,12.41834645,198.17,198.11,7.37215939]
[1753177384415,5.04618706,198.17,198.11,7.37215939]
[1753177384616,5.04618706,198.17,198.09,0.72]
[1753177384925,7.37215939,198.17,198.11,7.37215939]
[1753177385225,7.37215939,198.12,198.04,7.37215939]
[1753177385404,7.37215939,198.09,198.02,0.72]
[1753177385607,16.78468397,198.18,197.99,5.05076013]
[1753177385608,8.03215939,198.08,198.01,7.37215939]
[1753177385924,7.37215939,198.07,198.01,7.37215939]
[1753177386428,7.37215939,198.07,198.0,0.72]
[1753177386727,7.37215939,198.07,198.01,7.37215939]
[1753177386901,7.37215939,198.08,198.01,7.37215939]
[1753177387218,2.63058696,198.12,198.05,7.37215939]
[1753177387426,5.04755927,198.12,198.03,0.72]
[1753177387597,7.37215939,198.07,198.01,7.37215939]
[1753177387799,7.37215939,198.06,198.0,8.09215939]
[1753177388014,0.66,198.08,197.99,7.37215939]
[1753177388197,7.37215939,198.06,197.98,2.3242]
[1753177388397,7.37215939,198.06,197.99,7.37215939]
[1753177388702,7.37215939,198.06,197.99,12.42291952]
[1753177388906,1.16,198.07,197.98,1.6042]
[1753177389215,12.42113978,198.06,197.98,1.6042]
[1753177389423,12.42113978,198.06,197.99,7.37215939]
[1753177389808,5.04898039,198.06,197.99,7.37215939]
[1753177390009,12.42113978,198.06,197.99,7.37215939]
[1753177390208,7.37215939,198.05,197.99,7.37215939]
[1753177390629,5.04898039,198.06,197.99,7.37215939]
[1753177390824,12.42113978,198.06,197.99,7.37215939]
[1753177391010,7.37215939,198.06,197.99,12.42281979]
[1753177391415,7.37215939,198.05,197.99,12.42281979]
[1753177391626,5.04897957,198.06,197.98,2.3042]
[1753177391832,6.20873169,198.07,197.99,7.37215939]
[1753177392032,2.63083056,198.11,198.04,7.37215939]
[1753177392245,10.00298995,198.11,198.05,8.07215939]
[1753177392408,12.41997875,198.11,198.05,8.07215939]
[1753177392609,12.41997875,198.11,198.05,0.7]
[1753177392810,7.37215939,198.12,198.05,13.12129453]
[1753177393045,2.63036269,198.13,198.05,5.04913514]
[1753177393204,10.00252208,198.13,198.07,7.37215939]
[1753177393930,0.5,198.13,198.1,7.37215939]
[1753177394109,0.06,198.14,198.12,7.37215939]
[1753177394310,0.06,198.14,198.13,0.7]
[1753177394643,0.06,198.14,198.13,8.07215939]
[1753177394939,0.06,198.14,198.13,13.11935062]
[1753177395103,15.04517206,198.25,198.13,13.11935062]
[1753177395308,15.04517206,198.25,198.18,7.37215939]
[1753177395624,5.04434535,198.25,198.18,7.37215939]
[1753177395930,0.66,198.27,198.19,7.37215939]
[1753177395931,7.37215939,198.26,198.19,7.37215939]
[1753177396145,7.37215939,198.26,198.19,0.7]
[1753177396326,7.37215939,198.22,198.16,0.7]
[1753177396639,7.37215939,198.22,198.15,7.37215939]
[1753177396940,7.37215939,198.22,198.15,12.4187399]
[1753177397532,7.37215939,198.22,198.15,13.1187399]
[1753177398232,7.37215939,198.23,198.16,7.37215939]
[1753177398545,7.37215939,198.22,198.16,8.07215939]
[1753177398717,5.04477811,198.23,198.13,5.74700838]
[1753177398718,7.37215939,198.21,198.13,5.74700838]
[1753177398918,7.37215939,198.19,198.13,5.74700838]
[1753177399427,7.37215939,198.19,198.13,13.11916777]
[1753177399962,7.37215939,198.21,198.14,7.37215939]
[1753177400140,7.37215939,198.22,198.15,7.37215939]
[1753177400443,7.37215939,198.19,198.13,12.41916777]
[1753177400821,0.43,198.21,198.13,12.41916777]
[1753177400822,7.37215939,198.2,198.13,12.41916777]
[1753177401050,7.37215939,198.21,198.15,7.37215939]
[1753177401231,7.37215939,198.2,198.14,0.7]
[1753177401436,7.37215939,198.2,198.14,8.07215939]
[1753177401844,7.37215939,198.21,198.15,5.0466818]
[1753177402025,7.37215939,198.22,198.15,13.11884119]
[1753177403420,7.37215939,198.22,198.15,12.41884119]
[1753177403622,7.37215939,198.17,198.13,0.7]
[1753177403834,7.37215939,198.2,198.14,8.07215939]
[1753177404028,7.37215939,198.2,198.14,0.7]
[1753177404230,7.37215939,198.19,198.14,0.7]
[1753177404467,17.65540314,198.24,198.11,12.41986016]
[1753177404468,7.37215939,198.17,198.11,12.41986016]
[1753177404758,7.37215939,198.17,198.11,5.04770077]
[1753177404929,0.43,198.18,198.1,2.2364]
[1753177405130,7.37215939,198.16,198.1,0.7]
[1753177405653,7.37215939,198.16,198.1,8.07215939]
[1753177406047,7.37215939,198.16,198.1,5.74787312]
[1753177406360,7.37215939,198.17,198.1,13.12003251]
[1753177406853,7.37215939,198.17,198.1,5.74787312]
[1753177407040,12.41838951,198.17,198.1,13.12003251]
[1753177407554,12.41838951,198.17,198.1,5.04787312]
[1753177407738,5.04566325,198.19,198.11,8.07215939]
[1753177407939,7.37215939,198.19,198.12,7.37215939]
[1753177408141,7.37215939,198.18,198.11,8.07215939]
[1753177408459,16.78468397,198.2,198.11,8.07215939]
[1753177408460,7.37215939,198.19,198.12,8.07215939]
[1753177408762,7.37215939,198.17,198.12,0.7]
[1753177409139,7.37215939,198.19,198.13,0.7]
[1753177409749,17.21468397,198.23,198.13,13.1191564]
[1753177409969,7.37215939,198.22,198.16,7.37215939]
[1753177410161,7.37215939,198.21,198.14,8.07215939]
[1753177410537,7.37215939,198.21,198.14,0.7]
[1753177410737,7.37215939,198.2,198.14,0.7]
[1753177410956,21.82936943,198.23,198.14,0.7]
[1753177411168,0.43,198.24,198.16,7.37215939]
[1753177411353,7.37215939,198.26,198.2,7.37215939]
[1753177411553,7.43284078,198.27,198.2,7.37215939]
[1753177411840,7.43284078,198.27,198.19,13.11761085]
[1753177412062,7.37215939,198.26,198.19,13.11761085]
[1753177412259,7.37215939,198.24,198.16,0.7]
[1753177412453,7.37215939,198.23,198.16,0.7]
[1753177412775,7.37215939,198.21,198.14,13.11909589]
[1753177412958,0.43,198.23,198.14,13.11909589]
[1753177413278,7.86284078,198.27,198.18,7.37215939]
[1753177413454,7.86284078,198.27,198.14,5.0469365]
[1753177413455,0.43,198.26,198.17,0.7]
[1753177413651,7.37215939,198.24,198.17,13.11808929]
[1753177413846,7.37215939,198.25,198.19,7.37215939]
[1753177414349,0.5,198.26,198.2,7.37215939]
[1753177414554,0.5,198.26,198.21,8.07215939]
[1753177415069,2.38918474,198.27,198.22,0.7]
[1753177415443,7.37215939,198.28,198.22,0.7]
[1753177415652,12.41564297,198.28,198.22,0.7]
[1753177415845,12.41564297,198.28,198.22,5.74478402]
[1753177416065,7.37215939,198.28,198.22,5.74478402]
[1753177416257,12.84528897,198.29,198.22,13.11694341]
[1753177416568,2.62813026,198.3,198.23,0.7]
[1753177416766,7.37215939,198.32,198.26,7.37215939]
[1753177417147,15.10186242,198.33,198.26,7.37215939]
[1753177417761,7.72970303,198.33,198.26,12.41589903]
[1753177418047,15.10186242,198.33,198.26,12.41589903]
[1753177418254,10.05970463,198.33,198.26,5.04373964]
[1753177418580,0.06,198.27,198.26,5.04373964]
[1753177418880,0.06,198.27,198.26,5.74373964]
[1753177419662,0.06,198.27,198.26,13.11589903]
[1753177421370,0.06,198.31,198.26,13.11589903]
[1753177421371,0.06,198.31,198.26,25.72560345]
[1753177421571,0.06,198.31,198.3,7.37215939]
[1753177422068,0.06,198.31,198.27,0.71]
[1753177422268,0.06,198.31,198.26,7.37215939]
[1753177422656,7.37215939,198.27,198.2,8.08215939]
[1753177422857,7.37215939,198.25,198.18,7.37215939]
[1753177423179,0.06,198.31,198.23,7.37215939]
[1753177423180,7.80215939,198.3,198.23,7.37215939]
[1753177423482,7.37215939,198.27,198.2,8.08215939]
[1753177423682,7.37215939,198.26,198.2,8.08215939]
[1753177423887,5.04413619,198.25,198.2,8.08215939]
[1753177424170,12.41629558,198.25,198.2,0.71]
[1753177424766,0.43,198.24,198.18,5.04580109]
[1753177424973,7.80215939,198.24,198.17,5.04616246]
[1753177425176,7.80215939,198.24,198.18,7.37215939]
[1753177425367,7.80215939,198.24,198.17,12.41832185]
[1753177425681,7.37215939,198.21,198.16,0.71]
[1753177426095,0.43,198.24,198.15,12.41864135]
[1753177426391,7.37215939,198.25,198.18,7.37215939]
[1753177426554,7.37215939,198.26,198.19,8.08215939]
[1753177426753,7.37215939,198.3,198.23,7.37215939]
[1753177426961,7.37215939,198.3,198.24,0.71]
[1753177427178,7.37215939,198.28,198.22,7.37215939]
[1753177427377,0.49,198.31,198.23,0.71]
[1753177427581,7.37215939,198.28,198.23,0.71]
[1753177427759,7.37215939,198.27,198.21,7.37215939]
[1753177427960,7.37215939,198.26,198.2,13.12749287]
[1753177428176,12.41594318,198.27,198.2,13.12749287]
[1753177428873,0.5,198.27,198.21,8.08215939]
[1753177429257,0.5,198.27,198.22,8.08215939]
[1753177429453,0.5,198.27,198.23,7.37215939]
[1753177429658,0.5,198.27,198.24,0.71]
[1753177430380,7.37215939,198.3,198.25,0.71]
[1753177430677,7.37215939,198.28,198.22,8.08215939]
[1753177430973,7.80215939,198.29,198.22,8.08215939]
[1753177431283,7.37215939,198.27,198.21,7.37215939]
[1753177431583,7.37215939,198.25,198.2,5.04540538]
[1753177431959,7.37215939,198.25,198.19,5.75563651]
[1753177432159,12.41627002,198.26,198.19,13.1277959]
[1753177432361,7.37215939,198.26,198.2,7.37215939]
[1753177432864,0.06,198.31,198.2,7.37215939]
[1753177433069,7.37215939,198.28,198.21,8.08215939]
[1753177433377,7.37215939,198.29,198.23,7.37215939]
[1753177433564,7.37215939,198.3,198.23,7.37215939]
[1753177433763,7.37215939,198.3,198.23,8.08215939]
[1753177433961,0.5,198.28,198.23,5.75461512]
[1753177434374,7.37215939,198.28,198.23,5.75461512]
[1753177434677,5.04286434,198.3,198.16,1.5893]
[1753177434678,7.37215939,198.24,198.16,9.67145939]
[1753177434885,7.37215939,198.23,198.17,7.37215939]
[1753177435651,7.37215939,198.24,198.19,5.04566325]
[1753177436194,7.37215939,198.24,198.19,5.75566325]
[1753177436379,7.37215939,198.24,198.19,5.04566325]
[1753177436683,7.37215939,198.24,198.2,0.71]
[1753177436983,12.60716086,198.3,198.2,0.71]
[1753177436984,7.37215939,198.25,198.2,0.71]
[1753177437560,7.37215939,198.25,198.19,5.04566325]
[1753177437764,7.37215939,198.28,198.22,7.37215939]
[1753177438088,7.37215939,198.28,198.23,3.06027663]
[1753177438274,7.37215939,198.28,198.24,3.77027663]
[1753177438478,0.06,198.31,198.26,7.37215939]
[1753177438665,0.06,198.31,198.27,10.43243602]
[1753177438860,0.06,198.31,198.19,17.65982138]
[1753177438861,0.06,198.31,198.28,3.06027663]
[1753177439186,0.06,198.31,198.29,3.06027663]
[1753177439370,0.06,198.31,198.26,8.08215939]
[1753177439571,0.06,198.31,198.27,3.05816838]
[1753177439773,0.06,198.31,198.28,3.05816838]
[1753177440083,0.06,198.31,198.29,3.05816838]
[1753177440280,0.06,198.31,198.3,3.05816838]
[1753177441878,7.43215939,198.31,198.3,3.05816838]
[1753177442065,7.86215939,198.31,198.3,3.05816838]
[1753177442262,0.06,198.31,198.3,3.05816838]
[1753177443189,0.06,198.31,198.3,3.76816838]
[1753177443789,0.06,198.31,198.3,16.18319211]
[1753177444089,0.06,198.31,198.3,3.05816838]
[1753177444272,0.06,198.31,198.3,8.10103272]
[1753177444468,0.06,198.31,198.3,16.18319211]
[1753177446494,0.06,198.31,198.3,3.05816838]
[1753177446693,0.49,198.31,198.3,3.05816838]
[1753177446893,7.86215939,198.31,198.3,3.05816838]
[1753177447384,7.86215939,198.31,198.23,8.08215939]
[1753177447584,7.37215939,198.28,198.24,3.05847655]
[1753177447785,7.37215939,198.28,198.25,3.05847655]
[1753177447991,7.37215939,198.27,198.26,3.05847655]
[1753177448168,7.37215939,198.29,198.26,3.05847655]
[1753177448368,7.37215939,198.29,198.27,3.05847655]
[1753177448589,12.41530567,198.29,198.28,3.05847655]
[1753177448811,12.84530567,198.29,198.28,3.05847655]
[1753177449580,12.41530567,198.29,198.28,3.05847655]
[1753177450597,7.37215939,198.3,198.28,3.05847655]
[1753177450771,0.06,198.31,198.29,3.73847655]
[1753177450969,0.06,198.31,198.3,3.05847655]
[1753177451378,0.06,198.31,198.3,3.73847655]
[1753177451571,0.06,198.31,198.3,11.11063594]
[1753177452301,0.06,198.31,198.3,3.05847655]
[1753177453467,7.86215939,198.31,198.3,3.05847655]
[1753177453682,0.06,198.31,198.3,3.05847655]
[1753177453886,0.06,198.31,198.3,11.11063594]
[1753177454086,0.06,198.31,198.3,16.15350028]
[1753177454993,0.06,198.31,198.3,11.11063594]
[1753177455200,0.06,198.31,198.3,16.15350028]
[1753177455583,0.06,198.31,198.3,8.78134089]
[1753177455789,0.06,198.31,198.3,16.15350028]
[1753177457002,0.06,198.31,198.3,23.83760028]
[1753177459083,0.01037179,198.31,198.3,23.83760028]
[1753177460284,0.01037179,198.31,198.3,3.73847655]
[1753177460482,0.01037179,198.31,198.3,10.43063594]
[1753177460694,0.01037179,198.31,198.3,3.05847655]
[1753177462210,12.42514123,198.31,198.3,3.05847655]
[1753177462506,12.85514123,198.31,198.3,3.05847655]
[1753177462684,12.42514123,198.31,198.3,3.05847655]
[1753177463508,0.01037179,198.31,198.3,10.43063594]
[1753177463691,0.01037179,198.31,198.3,11.11063594]
[1753177463892,0.01037179,198.31,198.3,16.15350028]
[1753177464420,0.01037179,198.31,198.3,10.43063594]
[1753177464606,0.01037179,198.31,198.3,3.05847655]
[1753177465589,0.01037179,198.31,198.3,3.73847655]
[1753177466417,0.01037179,198.31,198.3,3.05847655]
[1753177467005,7.38253118,198.31,198.3,3.05847655]
[1753177467411,0.01037179,198.31,198.3,3.05847655]
[1753177468012,0.01037179,198.31,198.3,3.73847655]
[1753177468203,0.01037179,198.31,198.3,16.15350028]
[1753177469128,7.37215939,198.41,198.3,30.34276114]
[1753177469313,9.31145704,198.42,198.3,30.34276114]
[1753177469314,2.62661608,198.42,198.31,9.99147655]
[1753177469516,7.37215939,198.43,198.36,7.37215939]
[1753177469710,7.37215939,198.42,198.37,3.05847655]
[1753177469919,7.37215939,198.42,198.38,3.05847655]
[1753177470122,7.37215939,198.42,198.39,3.05847655]
[1753177470420,7.37215939,198.42,198.4,3.05847655]
[1753177470623,12.41190764,198.43,198.41,3.05847655]
[1753177470809,12.41190764,198.43,198.37,12.41322358]
[1753177470810,7.37215939,198.43,198.42,3.06432914]
[1753177471010,7.37215939,198.43,198.37,12.41322358]
[1753177471238,5.03933245,198.44,198.38,3.06484329]
[1753177471401,7.37215939,198.43,198.39,3.06484329]
[1753177471734,5.03933245,198.44,198.4,3.06484329]
[1753177471936,12.41149184,198.44,198.41,3.06484329]
[1753177472110,12.41149184,198.44,198.42,3.06484329]
[1753177472431,5.03933245,198.44,198.43,3.06484329]
[1753177472627,12.41149184,198.44,198.43,3.0639225]
[1753177472940,12.85149184,198.44,198.32,5.7221267]
[1753177473123,7.37215939,198.4,198.34,7.37215939]
[1753177473442,7.37215939,198.4,198.35,3.06461788]
[1753177473644,7.37215939,198.39,198.36,3.06461788]
[1753177473817,7.37215939,198.39,198.37,3.06579859]
[1753177474026,7.37215939,198.42,198.38,3.06579859]
[1753177474344,7.37215939,198.42,198.39,3.06579859]
[1753177474502,5.04006854,198.41,198.4,3.06579859]
[1753177474703,12.41222793,198.41,198.4,3.06579859]
[1753177474924,12.85222793,198.41,198.4,3.06579859]
[1753177475115,12.85222793,198.41,198.33,7.37215939]
[1753177475331,7.37215939,198.39,198.34,3.06557428]
[1753177475536,7.37215939,198.39,198.33,7.37215939]
[1753177475537,0.44,198.4,198.35,3.06557428]
[1753177475840,7.37215939,198.36,198.3,7.37215939]
[1753177476027,7.37215939,198.36,198.31,3.06666043]
[1753177476220,7.37215939,198.36,198.32,3.06666043]
[1753177476419,7.37215939,198.36,198.33,3.06666043]
[1753177476615,5.48159314,198.35,198.34,3.06666043]
[1753177476814,12.85375253,198.35,198.34,3.06666043]
[1753177477319,12.41375253,198.35,198.34,3.06666043]
[1753177477548,12.85375253,198.35,198.34,3.06666043]
[1753177478315,5.48159314,198.35,198.34,3.06666043]
[1753177478514,12.85375253,198.35,198.34,3.06666043]
[1753177478736,12.41375253,198.35,198.34,3.06666043]
[1753177479151,5.04159314,198.35,198.34,3.06666043]
[1753177479343,12.41375253,198.35,198.34,3.06986055]
[1753177479864,12.85375253,198.35,198.28,7.37215939]
[1753177480033,7.37215939,198.34,198.29,3.07147851]
[1753177480231,7.37215939,198.34,198.3,3.07147851]